Cogmind - Beta 14 @@@ ROGUE MODE // 2024.11.13 @ 05:20:25 Player: Hinzy Result: Destroyed by V8-NZB(R) with Subdweller Beam Cannon Performance ------------- Evolutions (0) 0 Regions Visited (2) 400 Robots Destroyed (20) 100 Value Destroyed (396) 396 Prototype IDs (2) 40 Alien Tech Used (0) 0 Bonus (0) 0 TOTAL SCORE: 936 Bonus ------- None Cogmind --------- Core Integrity 0/250 Matter 31/400 Energy 99/100 System Corruption 10% Temperature Cool (9) Movement Core (450) Ox8 Location -10/Subcaves Parts ------- > --- POWER (1) -------- (None) > --- PROPULSION (2) --- (None) > --- UTILITY (2) ------ Large Storage Unit Medium Matter Pod > --- WEAPON (2) ------- Light Cannon > --- INVENTORY (15) --- Light Treads Light Treads Aluminum Leg Medium Battery (150) Signal Interpreter Tractor Beam Light Cannon Peak State ------------ > --- POWER ------------ Ion Engine > --- PROPULSION ------- Light Treads Light Treads > --- UTILITY ---------- Small Storage Unit Seismic Detector > --- WEAPON ----------- Light Assault Rifle Rocket Launcher > --- INVENTORY -------- Light Ion Engine Aluminum Leg Aluminum Leg Compact Wheel Shield Generator Rocket Launcher Heavy Hammer [Rating: 9] Favorites ----------- Power Light Ion Engine Engine Light Ion Engine Propulsion Aluminum Leg Treads Light Treads Leg Aluminum Leg Wheel Wheel Utility Small Storage Unit Device Shield Generator Storage Small Storage Unit Weapon Light Cannon Energy Gun Small Laser Ballistic Gun Light Assault Rifle Ballistic Cannon Light Cannon Launcher Rocket Launcher Special Weapon Mining Laser Impact Weapon Heavy Hammer Build | -11 -10 -10 ------- Run | Yrd Mat Sub Slots Evolved . | . . . Power . | . . . Propulsion . | . . . Utility . | . . . Weapon . | . . . Parts Attached 44 | 7 32 5 Power 3 | 1 1 1 Engine 3 | 1 1 1 Core . | . . . Reactor . | . . . Propulsion 25 | 2 19 4 Treads 7 | 2 4 1 Leg 8 | . 8 . Wheel 10 | . 7 3 Hover . | . . . Flight . | . . . Utility 5 | 2 3 . Device 2 | 1 1 . Storage 3 | 1 2 . Processor . | . . . Hackware . | . . . Protection . | . . . Artifact . | . . . Weapon 11 | 2 9 . Energy Gun 1 | 1 . . Energy Cannon . | . . . Ballistic Gun 1 | 1 . . Ballistic Cannon 4 | . 4 . Launcher 3 | . 3 . Special Weapon 1 | . 1 . Impact Weapon 1 | . 1 . Slashing Weapon . | . . . Piercing Weapon . | . . . Special Melee Weapon . | . . . Unidentified Prototypes . | . . . Parts Lost 10 | . 6 4 Power 3 | . 1 2 Propulsion 4 | . 2 2 Utility 1 | . 1 . Weapon 2 | . 2 . Highest Loss Streak 5 | . 5 3 To Critical Strikes . | . . . Average Slot Usage (%) 92 | . 92 80 Engine 13 | . 13 10 Treads 7 | . 7 6 Leg 13 | . 14 . Wheel 4 | . 3 20 Device 9 | . 10 . Storage 18 | . 17 28 Ballistic Cannon 13 | . 13 14 Launcher 1 | . 1 . Special Weapon 4 | . 5 . Peak Build Rating 9 | 7 9 6 Average Rating 7 | 5 7 5 On Entrance 4 | . 7 6 Naked Turns . | . . . Heaviest Build 28 | 13 28 28 Greatest Support 40 | 40 40 20 Greatest Overweight (x) 5 | . 5 2 Average Overweight (x) . | . . 1 Largest Inventory Capacity 15 | 8 15 15 Average Capacity 9 | 6 9 15 Most Carried 9 | 4 8 9 Average Carried 6 | 3 6 7 Final Capacity 15 | 8 15 15 Final Carried 8 | 4 8 7 Class Distribution -------------------- 100% | Mutant Dominant Class ---------------- Mutant | -10/Materials Mutant | -10/Subcaves Resources | -11 -10 -10 ----------- Run | Yrd Mat Sub Matter Collected 470 | 205 260 5 Remotely . | . . . Salvage Created 256 | 12 239 5 Parts 31 | 3 25 3 Haulers Intercepted . | . . . Recyclers Shooed . | . . . Parts Field Recycled . | . . . Retrieved Matter . | . . . Parts Self-Destructed 6 | . . 6 Prevented . | . . . Kills | -11 -10 -10 ------- Run | Yrd Mat Sub Combat Hostiles Destroyed 12 | . 10 2 Melee 1 | . . 1 Cannons 6 | . 5 1 AOE 5 | . 5 . Classes Destroyed 6 | 1 5 . Worker 3 | . 3 . Tunneler 2 | 1 1 . Recycler 1 | . 1 . Watcher 2 | . 2 . Swarmer 5 | . 3 2 Grunt 7 | . 7 . Best Kill Streak 5 | 1 5 1 Combat Bots Only 3 | . 3 1 Max Kills in Single Turn 2 | 1 2 1 Gunslinging . | . . . Exploded 2 | . 2 . Melee 1 | . . 1 Uniques/NPCs Destroyed . | . . . Combat | -11 -10 -10 -------- Run | Yrd Mat Sub Hostile Shots Fired 111 | . 74 37 Missed 33 | . 21 12 Damage Taken 1453 | . 1126 327 Core 274 | . 176 98 Absorbed by Shields 157 | . 157 . Core Remaining (%) 100 | 100 . . Volleys Fired 60 | 6 51 3 Largest 2 | 2 2 1 Hottest 135 | 60 135 35 Shots Fired 70 | 12 55 3 Gun 12 | 12 . . Cannon 34 | . 31 3 Launcher 8 | . 8 . Special 16 | . 16 . Kinetic 40 | 6 31 3 Thermal 22 | 6 16 . Explosive 8 | . 8 . Electromagnetic . | . . . Robot Hit Streak 7 | 4 5 7 Robot Miss Streak 2 | 1 2 1 Penetration Max . | . . . Secondary Targets . | . . . Shots Hit Robots 37 | 9 26 2 Core Hits 26 | 1 22 3 Critical Kills . | . . . Critical Parts Destroyed . | . . . Critical Strikes 2 | . 2 . Blast 2 | . 2 . Melee Attacks 9 | . 9 . Impact 9 | . 9 . Slashing . | . . . Piercing . | . . . Sneak Attacks . | . . . Combat Hostiles . | . . . Follow-up Attacks . | . . . Damage Inflicted 1430 | 94 1286 50 Guns 85 | 85 . . Cannons 423 | . 392 31 Explosions 800 | . 800 . Melee . | . . . Ramming 96 | 9 68 19 Kinetic 465 | 42 392 31 Thermal 69 | 43 26 . Explosive 800 | . 800 . Electromagnetic . | . . . Impact . | . . . Slashing . | . . . Piercing . | . . . Highest Corruption 10 | . 10 10 Average Corruption 9 | . 9 10 Corruption Purged . | . . . Corruption Blocked . | . . . Effects 41 | . 37 4 Message Errors 11 | . 9 2 Matter Fused 7 | . 5 2 Heat Flow Errors 10 | . 10 . Energy Discharges 2 | . 2 . Parts Rejected 2 | . 2 . Data Loss (minor) 5 | . 5 . Data Loss (major) 3 | . 3 . Weapon Failures 1 | . 1 . Overload Shots . | . . . Overflow Damage 44 | . 44 . Projectiles . | . . . Explosions 44 | . 44 . Melee . | . . . Knockbacks 11 | . 10 1 Impact . | . . . Kinetic 10 | . 9 1 Secondary 1 | . 1 . Self-Inflicted Damage 131 | . 131 . Shots 4 | . 4 . Rammed 36 | 1 25 10 Targets Rammed 42 | 1 30 11 Kicked 4 | . 4 . Crushed 2 | . 1 1 Highest Temperature 269 | 40 252 269 Average Temperature 77 | 21 79 149 Received Heat Transfer 555 | . 198 357 Siege Activations . | . . . Robots Corrupted . | . . . Combat Hostiles . | . . . Parts Fried . | . . . Impact Corruptions . | . . . Robots Melted . | . . . Combat Hostiles . | . . . Parts Melted . | . . . Heat Transferred 150 | 100 50 . Parts Sabotaged . | . . . Parts Stolen . | . . . Parts Stripped . | . . . Power Chain Reactions . | . . . Alert | -11 -10 -10 ------- Run | Yrd Mat Sub Peak Influence 291 | 5 291 . Initial 3 | . 3 . Average 97 | 1 109 . Maximum Alert Level 1 | . 1 . Low Security (%) 73 | 100 70 . Level 1 26 | . 29 . Level 2 . | . . . Level 3 . | . . . Level 4 . | . . . Level 5 . | . . . High Security . | . . . Max Security . | . . . Squads Dispatched 5 | . 5 . Investigation 3 | . 3 . Extermination . | . . . Reinforcement 2 | . 2 . Assault . | . . . Garrison . | . . . Intercept . | . . . Searches Triggered . | . . . Construction Impeded . | . . . Haulers Reinforced . | . . . Active Scanning Responses . | . . . Cargo Convoy Interrupts . | . . . Stealth | -11 -10 -10 --------- Run | Yrd Mat Sub Distress Signals . | . . . Communications Jammed . | . . . Distress Signals . | . . . Times Spotted 22 | . 17 5 Peak Tracking Total 5 | . 5 3 Tactical Retreats 1 | . . 1 Traps | -11 -10 -10 ------- Run | Yrd Mat Sub Traps Triggered 1 | . 1 . Indirectly . | . . . Trap Hack Attempts . | . . . Triggered . | . . . Disarmed . | . . . Reprogrammed . | . . . Reused . | . . . Traps Extracted . | . . . Installed . | . . . Triggered . | . . . Machines | -11 -10 -10 ---------- Run | Yrd Mat Sub Machines Disabled 4 | . 4 . Max in Single Turn 2 | . 2 . Machines Repaired . | . . . Machines Dismantled . | . . . Machines Sabotaged . | . . . Overloaded Fab Kills . | . . . Hacking | -11 -10 -10 --------- Run | Yrd Mat Sub Machines Accessed 8 | . 8 . Terminals 6 | . 6 . Fabricators . | . . . Repair Stations 1 | . 1 . Recycling Units 1 | . 1 . Scanalyzers . | . . . Garrison Access . | . . . Total Hacks 22 | . 22 . Successful 12 | . 12 . Failed 10 | . 10 . Catastrophic 1 | . 1 . Database Lockouts . | . . . Manual 12 | . 12 . Terminals 18 | . 18 . Fabricators . | . . . Repair Stations 1 | . 1 . Recycling Units 3 | . 3 . Scanalyzers . | . . . Garrison Access . | . . . Terminal Hacks 7 | . 7 . Robot Analysis 3 | . 3 . Prototype ID Bank 1 | . 1 . Dispatch Records 1 | . 1 . Zone Layout 2 | . 2 . Fabricator Hacks . | . . . Repair Station Hacks . | . . . Recycling Unit Hacks 2 | . 2 . Report Inventory 1 | . 1 . Retrieve Matter 1 | . 1 . Scanalyzer . | . . . Garrison Access Hacks . | . . . Unauthorized Hacks 3 | . 3 . Terminals 2 | . 2 . Botnet 2 | . 2 . Fabricators . | . . . Repair Stations 1 | . 1 . Mechanics 1 | . 1 . Recycling Units . | . . . Scanalyzers . | . . . Garrison Access . | . . . Data Cores Recovered . | . . . Used . | . . . Hacking Detections 7 | . 7 . Full Trace Events 4 | . 4 . Feedback Events . | . . . Feedback Blocked . | . . . Robot Schematics Acquired . | . . . Robots Built . | . . . Authchips . | . . . Time . | . . . Total Robot Build Rating . | . . . Part Schematics Acquired . | . . . Parts Built . | . . . Authchips . | . . . Time . | . . . Total Part Build Rating . | . . . Parts Repaired . | . . . Time . | . . . Parts Recycled . | . . . Recycled Matter . | . . . Retrieved Matter . | . . . Retrieved Components . | . . . Parts Scanalyzed . | . . . Part Schematics Acquired . | . . . Parts Damaged . | . . . Bothacking | -11 -10 -10 ------------ Run | Yrd Mat Sub Used RIF Installer . | . . . Robots Hacked . | . . . Non-combat . | . . . Combat . | . . . Robot Hacks Applied . | . . . Relay Couplers Released . | . . . Fabnet Peak Effective % . | . . . Robots Rewired . | . . . Allies Hacked . | . . . Hacks Repelled . | . . . Allies | -11 -10 -10 -------- Run | Yrd Mat Sub Total Allies . | . . . Largest Group . | . . . Highest-Rated Group . | . . . Highest-Rated Ally . | . . . Total Orders . | . . . Ally Attacks . | . . . Total Damage . | . . . Kills . | . . . Allies Corrupted . | . . . Allies Melted . | . . . Intel | -11 -10 -10 ------- Run | Yrd Mat Sub Robot Analysis Total 3 | . 3 . Derelict Logs Recovered . | . . . Drone Launches . | . . . Drone Recoveries . | . . . Exploration | -11 -10 -10 ------------- Run | Yrd Mat Sub Turns Passed 1448 | 143 1213 92 Spaces Moved 714 | 73 593 48 Core 12 | 8 4 . Treads 211 | 65 144 2 Legs 306 | . 306 . Wheels 185 | . 139 46 Hover . | . . . Flight . | . . . Fastest Speed 50 | 50 80 95 Average Speed 127 | 147 127 107 Slowest Speed 300 | 160 300 240 Overloaded Moves . | . . . Propulsion Burnouts . | . . . Robots Hopped . | . . . Cave-ins Triggered 2 | . 2 . Exploration Rate (%) 32 | 5 87 6 Regions Visited 2 Branch Regions 1 Pre-discovered Areas . | . . . Known Exits Taken . | . . . Unknown Exits Taken 2 | 1 1 . Scrap Searched . | . . . Spaces Dug 21 | . 21 . Terrain Destroyed 102 | . 102 . Melee 9 | . 9 . Projectile 13 | . 13 . AOE 80 | . 80 . Terrain Rammed . | . . . Walls Destroyed . | . . . Machines Disabled . | . . . Actions | -11 -10 -10 --------- Run | Yrd Mat Sub Total 1092 | 93 930 69 Wait 188 | 3 184 1 Move 710 | 72 590 48 Hop . | . . . Pick Up 18 | 4 14 . Fast Attach 16 | 7 9 . Attach 12 | . 10 2 Detach 4 | . 3 1 Swap 16 | . 13 3 Drop 15 | . 15 . Fire 60 | 6 51 3 Melee 9 | . 9 . Ram 3 | . 3 . Kick 4 | . 4 . Crush 35 | 1 23 11 Escape Stasis 2 | . 2 . Rewire . | . . . Trap . | . . . Miscellaneous . | . . . Route ------- -11/Scrapyard -10/Materials (discovered 3 exits: [*Mat x2] / [*Sub]) -10/Subcaves History --------- Turn | Location | Event 5 | -11/Scrapyard | Discovered new exit (range 13) 144 | -11/Scrapyard | Entered Materials 288 | -10/Materials | Crushed by falling debris 292 | -10/Materials | Crushed by falling debris 293 | -10/Materials | System corruption reached 10% 323 | -10/Materials | Lost 5 parts (1p2n1u1w) 353 | -10/Materials | Build established: Mutant 569 | -10/Materials | Discovered new exit (range 10) 734 | -10/Materials | Discovered new exit (range 15) 1031 | -10/Materials | Core integrity fell below 50% 1343 | -10/Materials | Discovered new exit (range 5) 1357 | -10/Materials | Entered Subcaves 1387 | -10/Subcaves | Core integrity fell below 20% 1449 | -10/Subcaves | Destroyed by V8-NZB(R) with Subdweller Beam Cannon Last Messages --------------- 01375_ Acquired 5 matter. 01379_ Subatomizers dissect the Lgt. Assault Rifle. 01379_ Slammed into S-10 Pest. 01383_ System corrupted: Matter fused (-10). 01384_ Flight Unit fries itself beyond repair. 01384_ Slammed into S-10 Pest. 01385_ Lgt. Assault Rifle fries itself beyond repair. 01386_ Slammed into S-10 Pest. 01390_ Lgt. Ion Engine destroyed. 01391_ Slammed into S-10 Pest. 01403_ Crushed S-10 Pest. 01403_ S-10 Pest destroyed. 01421_ W/%WEKTGZS98LLJ 01423_ Critical hit (Meltdown: +300). 01431_ Wheel destroyed. 01433_ Lgt. Ion Engine destroyed. 01449_ CSEVUECRAU4XXCS=0NT>